fUST/lending_fUST_20250529
["ID","MTS","AMOUNT","RATE_DAILY","PERIOD"]
[362863473,1748497835991,-402.63106356,0.00020239,2]
[362863474,1748497836000,-450.0,0.00020239,2]
[362863475,1748497836009,-435.39868368,0.00020239,2]
[362863476,1748497836019,-430.0,0.00020239,2]
[362863477,1748497836029,-430.0,0.00020239,2]
[362863478,1748497836038,-430.0,0.00020239,2]
[362863479,1748497836048,-430.0,0.00020239,2]
[362863480,1748497836058,-430.0,0.00020239,2]
[362863481,1748497836068,-430.0,0.00020239,2]
[362863482,1748497836078,-204.73198522,0.00020239,2]
[362863483,1748497836087,-819.35,0.00020239,2]
[362863484,1748497836097,-430.0,0.00020239,2]
[362863485,1748497836107,-312.575646,0.00020239,2]
[362863486,1748497836117,-430.0,0.00020239,2]
[362863487,1748497836127,-275.63735612,0.00020239,2]
[362863488,1748497836137,-430.0,0.00020239,2]
[362863489,1748497836240,-430.0,0.00020239,2]
[362863490,1748497836249,-430.0,0.00020239,2]
[362863491,1748497836259,-430.0,0.00020239,2]
[362863492,1748497836269,-430.0,0.00020239,2]
[362863493,1748497836279,-430.0,0.00020239,2]
[362863494,1748497836289,-430.0,0.00020239,2]
[362863495,1748497836298,-430.0,0.00020239,2]
[362863496,1748497836307,-430.0,0.00020239,2]
[362863497,1748497836316,-431.13314302,0.00020239,2]
[362863498,1748497836326,-430.0,0.00020239,2]
[362863499,1748497836335,-430.0,0.00020239,2]
[362863500,1748497836345,-430.0,0.00020239,2]
[362863501,1748497836354,-500.0,0.00020239,2]
[362863502,1748497836364,-402.1124176,0.0002024,2]
[362863503,1748497836374,-503.02752537,0.00020273,2]
[362863504,1748497836384,-500.0,0.00020273,2]
[362863505,1748497836394,-500.0,0.00020273,2]
[362863506,1748497836403,-500.69573903,0.00020273,2]
[362863507,1748497836412,-500.0,0.00020273,2]
[362863508,1748497836422,-501.29123709,0.00020273,2]
[362863509,1748497836433,-500.0,0.00020273,2]
[362863510,1748497836443,-500.0,0.00020273,2]
[362863511,1748497836452,-504.41641867,0.00020273,2]
[362863512,1748497836462,-500.0,0.00020273,2]
[362863513,1748497836471,-273.32111676,0.00020273,2]
[362863514,1748497836482,-500.76118284,0.00020273,2]
[362863515,1748497836491,-503.18282827,0.00020273,2]
[362863516,1748497836501,-500.0,0.00020273,2]
[362863517,1748497836510,-500.0,0.00020273,2]
[362863518,1748497836520,-506.3374252,0.00020273,2]
[362863519,1748497836529,-158.59869955,0.00020273,2]
[362863520,1748497836538,-500.0,0.00020273,2]
[362863521,1748497836547,-501.24337579,0.00020273,2]
[362863522,1748497836556,-500.0,0.00020273,2]
[362863523,1748497836566,-500.0,0.00020273,2]
[362863524,1748497836575,-500.0,0.00020273,2]
[362863525,1748497836585,-500.0,0.00020273,2]
[362863526,1748497836594,-500.0,0.00020273,2]
[362863527,1748497836603,-500.0,0.00020273,2]
[362863528,1748497836612,-500.40711863,0.00020484,2]
[362863529,1748497836623,-430.0,0.00020509,2]
[362863530,1748497836632,-488.34977376,0.00020509,2]
[362863531,1748497836642,-430.0,0.00020509,2]
[362863532,1748497836651,-430.0,0.00020509,2]
[362863533,1748497836661,-342.23289694,0.00020509,2]
[362863534,1748497836670,-442.24007679,0.00020509,2]
[362863535,1748497836680,-430.0,0.00020509,2]
[362863536,1748497836692,-460.62282595,0.00020509,2]
[362863537,1748497836702,-430.0,0.00020509,2]
[362863538,1748497836711,-441.65035572,0.00020509,2]
[362863539,1748497836721,-430.0,0.00020509,2]
[362863540,1748497836731,-430.0,0.00020509,2]
[362863541,1748497836740,-430.0,0.00020509,2]
[362863542,1748497836750,-442.07956596,0.00020509,2]
[362863543,1748497836759,-430.0,0.00020509,2]
[362863544,1748497836768,-430.0,0.00020509,2]
[362863545,1748497836777,-589.88,0.00020509,2]
[362863546,1748497836785,-430.0,0.00020509,2]
[362863547,1748497836795,-430.0,0.00020509,2]
[362863548,1748497836804,-2243.48,0.00020509,2]
[362863549,1748497836815,-430.0,0.00020509,2]
[362863550,1748497836824,-527.0,0.00020509,2]
[362863551,1748497836834,-430.0,0.00020511,2]
[362863552,1748497836846,-430.0,0.00020511,2]
[362863553,1748497836857,-448.06695278,0.00020511,2]
[362863554,1748497836867,-430.0,0.00020511,2]
[362863555,1748497836876,-430.0,0.00020511,2]
[362863556,1748497836886,-205.53367335,0.00020511,2]
[362863557,1748497836896,-430.0,0.00020511,2]
[362863558,1748497836905,-430.0,0.00020511,2]
[362863559,1748497836915,-383.21356054,0.00020511,2]
[362863560,1748497836926,-467.08467851,0.00020511,2]
[362863561,1748497836938,-430.0,0.00020511,2]
[362863562,1748497836948,-430.0,0.00020511,2]
[362863563,1748497836957,-430.0,0.00020511,2]
[362863564,1748497836968,-1857.11,0.00020511,2]
[362863565,1748497836980,-430.0,0.00020511,2]
[362863566,1748497836989,-404.31349164,0.00020511,2]
[362863567,1748497836999,-430.0,0.00020511,2]
[362863568,1748497837008,-3389.39,0.00020511,2]
[362863569,1748497837017,-430.0,0.00020511,2]
[362863570,1748497837027,-430.0,0.00020511,2]
[362863571,1748497837036,-430.0,0.00020511,2]
[362863572,1748497837046,-430.0,0.00020511,2]
[362863573,1748497837057,-430.0,0.00020511,2]
[362863574,1748497837066,-430.0,0.00020511,2]
[362863575,1748497837076,-430.0,0.00020511,2]
[362863576,1748497837086,-406.60299656,0.00020511,2]
[362863577,1748497837096,-1380.33,0.00020511,2]
[362863578,1748497837106,-430.0,0.00020511,2]
[362863579,1748497837116,-430.0,0.00020511,2]
[362863580,1748497837125,-1702.25,0.00020511,2]
[362863581,1748497837134,-430.0,0.00020511,2]
[362863582,1748497837144,-430.0,0.00020511,2]
[362863583,1748497837153,-430.0,0.00020511,2]
[362863584,1748497837162,-430.0,0.00020511,2]
[362863585,1748497837171,-430.0,0.00020511,2]
[362863586,1748497837181,-570.90841972,0.00020511,2]
[362863587,1748497837194,-430.0,0.00020511,2]
[362863588,1748497837203,-483.75,0.00020511,2]
[362863589,1748497837213,-430.0,0.00020511,2]
[362863590,1748497837223,-430.0,0.00020511,2]
[362863591,1748497837233,-430.0,0.00020511,2]
[362863592,1748497837243,-430.0,0.00020511,2]
[362863593,1748497837253,-430.0,0.00020511,2]
[362863594,1748497837263,-439.90100698,0.00020511,2]
[362863595,1748497837272,-517.11,0.00020511,2]
[362863596,1748497837281,-430.0,0.00020511,2]
[362863597,1748497837291,-430.0,0.00020511,2]
[362863598,1748497837301,-430.0,0.00020511,2]
[362863599,1748497837311,-430.0,0.00020511,2]
[362863600,1748497837322,-430.0,0.00020511,2]
[362863601,1748497837331,-210.51631516,0.00020511,2]
[362863602,1748497837340,-430.0,0.00020511,2]
[362863603,1748497837350,-430.0,0.00020511,2]
[362863604,1748497837360,-430.0,0.00020511,2]
[362863605,1748497837369,-1587.24,0.00020511,2]
[362863606,1748497837379,-374.45711979,0.00020511,2]
[362863607,1748497837389,-453.3464343,0.00020511,2]
[362863608,1748497837399,-500.0,0.00020511,2]
[362863609,1748497837408,-500.0,0.00020511,2]
[362863610,1748497837418,-430.0,0.00020511,2]
[362863611,1748497837428,-430.0,0.00020511,2]
[362863612,1748497837439,-430.0,0.00020511,2]
[362863613,1748497837448,-430.0,0.00020511,2]
[362863614,1748497837457,-430.0,0.00020511,2]
[362863615,1748497837466,-430.0,0.00020511,2]
[362863616,1748497837476,-430.0,0.00020511,2]
[362863617,1748497837486,-430.0,0.00020511,2]
[362863618,1748497837495,-1070.88,0.00020511,2]
[362863619,1748497837506,-7466.6,0.00020511,2]
[362863620,1748497837516,-430.0,0.00020511,2]
[362863621,1748497837525,-470.84631018,0.00020511,2]
[362863622,1748497837535,-791.02,0.00020512,2]
[362863623,1748497837544,-430.0,0.00020512,2]
[362863624,1748497837554,-330.41196301,0.00020512,2]
[362863625,1748497837563,-430.0,0.00020512,2]
[362863626,1748497837572,-430.0,0.00020512,2]
[362863627,1748497837582,-430.0,0.00020512,2]
[362863628,1748497837592,-483.75,0.00020512,2]
[362863629,1748497837602,-430.0,0.00020512,2]
[362863630,1748497837611,-430.0,0.00020512,2]
[362863631,1748497837621,-782.42,0.00020512,2]
[362863632,1748497837630,-430.0,0.00020512,2]
[362863633,1748497837640,-1869.63,0.00020512,2]
[362863634,1748497837649,-430.0,0.00020512,2]
[362863635,1748497837659,-501.66,0.00020512,2]
[362863636,1748497837669,-430.0,0.00020512,2]
[362863637,1748497837678,-500.0,0.00020512,2]
[362863638,1748497837688,-686.92,0.00020512,2]
[362863639,1748497837698,-430.0,0.00020512,2]
[362863640,1748497837709,-598.71492548,0.00020513,2]
[362863641,1748497837718,-431.89394028,0.00020513,2]
[362863642,1748497837728,-430.0,0.00020513,2]
[362863643,1748497837737,-430.0,0.00020513,2]
[362863644,1748497837747,-430.0,0.00020513,2]
[362863645,1748497837757,-430.0,0.00020513,2]
[362863646,1748497837766,-430.0,0.00020513,2]
[362863647,1748497837776,-225.82412333,0.00020513,2]
[362863648,1748497837786,-430.0,0.00020513,2]
[362863650,1748497837795,-430.0,0.00020513,2]
[362863651,1748497837804,-432.28143441,0.00020513,2]
[362863652,1748497837814,-430.0,0.00020513,2]
[362863653,1748497837825,-430.0,0.00020513,2]
[362863654,1748497837834,-448.41591678,0.00020513,2]
[362863655,1748497837847,-430.0,0.00020513,2]
[362863656,1748497837857,-566.41,0.00020513,2]
[362863657,1748497837867,-437.13545225,0.00020513,2]
[362863658,1748497837877,-435.10959686,0.00020513,2]
[362863659,1748497837887,-430.0,0.00020513,2]
[362863660,1748497837896,-430.0,0.00020513,2]
[362863661,1748497837906,-430.0,0.00020513,2]
[362863663,1748497837916,-430.0,0.00020513,2]
[362863665,1748497837925,-430.0,0.00020513,2]
[362863667,1748497837935,-430.0,0.00020513,2]
[362863669,1748497837945,-430.0,0.00020513,2]
[362863671,1748497837954,-430.0,0.00020513,2]
[362863674,1748497837965,-169.93744485,0.00020513,2]
[362863677,1748497837974,-430.0,0.00020513,2]
[362863680,1748497837983,-454.70987108,0.00020513,2]
[362863683,1748497837992,-430.0,0.00020513,2]
[362863685,1748497838001,-430.0,0.00020513,2]
[362863687,1748497838011,-430.0,0.00020513,2]
[362863689,1748497838020,-430.0,0.00020513,2]
[362863691,1748497838030,-430.0,0.00020513,2]
[362863693,1748497838040,-430.0,0.00020513,2]
[362863695,1748497838049,-430.0,0.00020513,2]
[362863697,1748497838058,-430.0,0.00020513,2]
[362863699,1748497838068,-430.0,0.00020513,2]
[362863701,1748497838078,-819.35,0.00020513,2]
[362863703,1748497838086,-430.0,0.00020513,2]
[362863705,1748497838095,-430.0,0.00020513,2]
[362863707,1748497838104,-430.0,0.00020513,2]
[362863709,1748497838113,-577.83194408,0.00020513,2]
[362863711,1748497838122,-260.01932301,0.00020513,2]
[362863713,1748497838132,-430.0,0.00020513,2]
[362863715,1748497838141,-430.0,0.00020513,2]
[362863717,1748497838151,-430.0,0.00020513,2]
[362863719,1748497838160,-445.00578594,0.00020513,2]
[362863721,1748497838170,-430.0,0.00020513,2]
[362863723,1748497838180,-430.0,0.00020513,2]
[362863725,1748497838192,-430.0,0.00020513,2]
[362863727,1748497838201,-1165.76070012,0.00020567,2]
[362863729,1748497838210,-191.805,0.00020702,2]
[362863731,1748497838219,-430.0,0.00020783,2]
[362863733,1748497838229,-453.18138622,0.00020783,2]
[362863735,1748497838239,-430.0,0.00020783,2]
[362863737,1748497838248,-430.0,0.00020783,2]
[362863739,1748497838257,-589.88,0.00020783,2]
[362863741,1748497838266,-430.0,0.00020783,2]
[362863742,1748497838275,-522.82940769,0.00020783,2]
[362863744,1748497838284,-2243.48,0.00020783,2]
[362863746,1748497838294,-546.7536063,0.00020783,2]
[362863748,1748497838303,-527.0,0.00020783,2]
[362863750,1748497838313,-430.0,0.00020785,2]
[362863752,1748497838322,-430.0,0.00020785,2]
[362863754,1748497838331,-430.0,0.00020785,2]
[362863756,1748497838340,-430.0,0.00020785,2]
[362863759,1748497838352,-472.40176926,0.00020785,2]
[362863761,1748497838361,-430.0,0.00020785,2]
[362863763,1748497838372,-430.0,0.00020785,2]
[362863765,1748497838381,-1857.11,0.00020785,2]
[362863767,1748497838391,-430.0,0.00020785,2]
[362863769,1748497838400,-430.0,0.00020785,2]
[362863771,1748497838410,-3389.39,0.00020785,2]
[362863773,1748497838419,-430.0,0.00020785,2]
[362863775,1748497838429,-208.21779657,0.00020785,2]
[362863777,1748497838439,-430.0,0.00020785,2]
[362863779,1748497838448,-430.0,0.00020785,2]
[362863781,1748497838458,-430.0,0.00020785,2]
[362863783,1748497838467,-430.0,0.00020785,2]
[362863796,1748497838567,-1380.33,0.00020785,2]
[362863798,1748497838577,-280.0,0.00020785,2]
[362863800,1748497838586,-430.0,0.00020785,2]
[362863802,1748497838596,-1702.25,0.00020785,2]
[362863805,1748497838606,-430.0,0.00020785,2]
[362863806,1748497838616,-430.0,0.00020785,2]
[362863808,1748497838625,-430.0,0.00020785,2]
[362863810,1748497838634,-430.0,0.00020785,2]
[362863812,1748497838643,-430.0,0.00020785,2]
[362863814,1748497838652,-483.75,0.00020785,2]
[362863816,1748497838662,-430.0,0.00020785,2]
[362863818,1748497838671,-430.0,0.00020785,2]
[362863820,1748497838680,-430.0,0.00020785,2]
[362863822,1748497838691,-430.0,0.00020785,2]
[362863824,1748497838700,-517.11,0.00020785,2]
[362863826,1748497838709,-430.0,0.00020785,2]
[362863828,1748497838719,-430.0,0.00020785,2]
[362863830,1748497838728,-430.0,0.00020785,2]
[362863832,1748497838737,-430.0,0.00020785,2]
[362863834,1748497838746,-204.93947362,0.00020785,2]
[362863836,1748497838755,-430.0,0.00020785,2]
[362863838,1748497838765,-1587.24,0.00020785,2]
[362863840,1748497838774,-500.0,0.00020785,2]
[362863842,1748497838783,-500.0,0.00020785,2]
[362863844,1748497838793,-430.0,0.00020785,2]
[362863846,1748497838802,-430.0,0.00020785,2]
[362863848,1748497838811,-430.0,0.00020785,2]
[362863850,1748497838820,-430.0,0.00020785,2]
[362863852,1748497838829,-430.0,0.00020785,2]
[362863854,1748497838838,-430.0,0.00020785,2]
[362863856,1748497838849,-430.0,0.00020785,2]
[362863858,1748497838857,-430.0,0.00020785,2]
[362863860,1748497838867,-1070.88,0.00020785,2]
[362863862,1748497838876,-7466.6,0.00020785,2]
[362863864,1748497838884,-430.0,0.00020785,2]
[362863866,1748497838894,-791.02,0.00020786,2]
[362863868,1748497838902,-430.0,0.00020786,2]
[362863870,1748497838910,-430.0,0.00020786,2]
[362863872,1748497838918,-430.0,0.00020786,2]
[362863874,1748497838926,-483.75,0.00020786,2]
[362863876,1748497838937,-430.0,0.00020786,2]
[362863878,1748497838946,-430.0,0.00020786,2]
[362863880,1748497838955,-782.42,0.00020786,2]
[362863882,1748497838965,-430.0,0.00020786,2]
[362863884,1748497838974,-1869.63,0.00020786,2]
[362863886,1748497838983,-430.0,0.00020786,2]
[362863888,1748497838993,-501.66,0.00020786,2]
[362863890,1748497839002,-438.87063163,0.00020786,2]
[362863892,1748497839011,-686.92,0.00020786,2]
[362863894,1748497839021,-430.0,0.00020786,2]
[362863896,1748497839031,-430.0,0.00020787,2]
[362863898,1748497839040,-430.0,0.00020787,2]
[362863900,1748497839049,-430.0,0.00020787,2]
[362863902,1748497839058,-430.0,0.00020787,2]
[362863904,1748497839067,-430.0,0.00020787,2]
[362863906,1748497839076,-430.0,0.00020787,2]
[362863908,1748497839085,-430.0,0.00020787,2]
[362863910,1748497839095,-430.0,0.00020787,2]
[362863912,1748497839104,-430.0,0.00020787,2]
[362863914,1748497839113,-430.0,0.00020787,2]
[362863916,1748497839123,-440.72351575,0.00020787,2]
[362863918,1748497839133,-430.0,0.00020787,2]
[362863920,1748497839143,-430.0,0.00020787,2]
[362863922,1748497839152,-430.0,0.00020787,2]
[362863924,1748497839162,-430.0,0.00020787,2]
[362863926,1748497839171,-430.0,0.00020787,2]
[362863928,1748497839180,-430.0,0.00020787,2]
[362863930,1748497839190,-430.0,0.00020787,2]
[362863932,1748497839199,-430.0,0.00020787,2]
[362863934,1748497839208,-819.35,0.00020787,2]
[362863936,1748497839218,-430.0,0.00020787,2]
[362863938,1748497839227,-430.0,0.00020787,2]
[362863940,1748497839236,-430.0,0.00020787,2]
[362863942,1748497839246,-430.0,0.00020787,2]
[362863943,1748497839255,-430.0,0.00020787,2]
[362863945,1748497839264,-430.0,0.00020787,2]
[362863948,1748497839274,-430.0,0.00020787,2]
[362863950,1748497839284,-278.81751924,0.00020787,2]
[362863952,1748497839293,-1000.0,0.00020821,2]
[362863954,1748497839303,-1000.05900225,0.00020821,2]
[362863956,1748497839313,-506.74986284,0.00020821,2]
[362863958,1748497839322,-1007.06452997,0.00020821,2]
[362863960,1748497839333,-507.93078459,0.00020821,2]
[362863962,1748497839343,-504.36946988,0.00020821,2]
[362863964,1748497839352,-502.88260009,0.00020821,2]
[362863966,1748497839362,-1003.67587005,0.00020821,2]
[362863968,1748497839371,-1000.0,0.00020821,2]
[362863970,1748497839382,-381.08268529,0.00020821,2]
[362863972,1748497839391,-1002.50538554,0.00020821,2]
[362863974,1748497839400,-388.65094506,0.00020821,2]
[362863976,1748497839409,-1000.0,0.00020821,2]
[362863978,1748497839418,-1000.0,0.00020821,2]
[362863980,1748497839427,-1000.0,0.00020821,2]
[362863982,1748497839437,-209.60859223,0.000209,4]
[362863983,1748497839446,-1165.76070012,0.00020995,2]
[362863985,1748497839455,-430.0,0.00021057,2]
[362863987,1748497839464,-430.0,0.00021057,2]
[362863989,1748497839474,-430.0,0.00021057,2]
[362863992,1748497839484,-589.88,0.00021057,2]
[362863993,1748497839493,-430.0,0.00021057,2]
[362863995,1748497839502,-2243.48,0.00021057,2]
[362863997,1748497839511,-527.0,0.00021057,2]
[362863999,1748497839520,-430.0,0.00021059,2]
[362864001,1748497839530,-430.0,0.00021059,2]
[362864003,1748497839540,-430.0,0.00021059,2]
[362864004,1748497839549,-430.0,0.00021059,2]
[362864005,1748497839558,-1857.11,0.00021059,2]
[362864006,1748497839568,-430.0,0.00021059,2]
[362864007,1748497839577,-430.0,0.00021059,2]
[362864008,1748497839586,-3389.39,0.00021059,2]
[362864009,1748497839595,-430.0,0.00021059,2]
[362864010,1748497839604,-430.0,0.00021059,2]
[362864011,1748497839613,-430.0,0.00021059,2]
[362864012,1748497839622,-430.0,0.00021059,2]
[362864013,1748497839631,-1380.33,0.00021059,2]
[362864014,1748497839640,-430.0,0.00021059,2]
[362864015,1748497839650,-1702.25,0.00021059,2]
[362864016,1748497839659,-467.8349677,0.00021059,2]
[362864017,1748497839668,-430.0,0.00021059,2]
[362864018,1748497839677,-430.0,0.00021059,2]
[362864019,1748497839686,-430.0,0.00021059,2]
[362864020,1748497839696,-483.75,0.00021059,2]
[362864021,1748497839705,-430.0,0.00021059,2]
[362864022,1748497839714,-430.0,0.00021059,2]
[362864023,1748497839723,-430.0,0.00021059,2]
[362864024,1748497839731,-430.0,0.00021059,2]
[362864025,1748497839740,-517.11,0.00021059,2]
[362864026,1748497839749,-430.0,0.00021059,2]
[362864028,1748497839758,-430.0,0.00021059,2]
[362864029,1748497839768,-430.0,0.00021059,2]
[362864031,1748497839778,-1587.24,0.00021059,2]
[362864033,1748497839787,-500.0,0.00021059,2]
[362864035,1748497839796,-430.0,0.00021059,2]
[362864037,1748497839807,-430.0,0.00021059,2]
[362864039,1748497839816,-430.0,0.00021059,2]
[362864041,1748497839825,-430.0,0.00021059,2]
[362864043,1748497839835,-430.0,0.00021059,2]
[362864045,1748497839846,-430.0,0.00021059,2]
[362864047,1748497839855,-430.0,0.00021059,2]
[362864049,1748497839864,-1070.88,0.00021059,2]
[362864051,1748497839874,-7466.6,0.00021059,2]
[362864053,1748497839884,-430.0,0.00021059,2]
[362864056,1748497839895,-791.02,0.0002106,2]
[362864057,1748497839905,-430.0,0.0002106,2]
[362864059,1748497839913,-430.0,0.0002106,2]
[362864061,1748497839921,-430.0,0.0002106,2]
[362864064,1748497839930,-483.75,0.0002106,2]
[362864065,1748497839938,-430.0,0.0002106,2]
[362864067,1748497839946,-430.0,0.0002106,2]
[362864069,1748497839955,-782.42,0.0002106,2]
[362864071,1748497839962,-1869.63,0.0002106,2]
[362864073,1748497839970,-430.0,0.0002106,2]
[362864075,1748497839979,-501.66,0.0002106,2]
[362864077,1748497839989,-686.92,0.0002106,2]
[362864079,1748497839998,-430.0,0.0002106,2]
[362864081,1748497840007,-430.0,0.00021061,2]
[362864083,1748497840017,-166.68638067,0.00021061,2]
[362864085,1748497840026,-430.0,0.00021061,2]
[362864087,1748497840035,-363.77601713,0.00021061,2]
[362864089,1748497840044,-430.0,0.00021061,2]
[362864091,1748497840053,-430.0,0.00021061,2]
[362864093,1748497840062,-430.0,0.00021061,2]
[362864095,1748497840071,-430.0,0.00021061,2]
[362864097,1748497840080,-180.63838172,0.00021061,2]
[362864099,1748497840089,-430.0,0.00021061,2]
[362864101,1748497840099,-819.35,0.00021061,2]
[362864103,1748497840108,-450.0,0.00021061,2]
[362864105,1748497840117,-430.0,0.00021061,2]
[362864107,1748497840126,-430.0,0.00021061,2]
[362864109,1748497840136,-430.0,0.00021061,2]
[362864111,1748497840145,-430.0,0.00021061,2]
[362864113,1748497840154,-430.0,0.00021061,2]
[362864115,1748497840163,-430.0,0.00021061,2]
[362864117,1748497840172,-314.78059479,0.00021072,2]
[362864119,1748497840182,-160.0,0.00021072,2]
[362864121,1748497840192,-212.70147903,0.00021072,2]
[362864123,1748497840201,-160.0,0.00021072,2]
[362864125,1748497840211,-229.26895353,0.00021072,2]
[362864127,1748497840221,-160.0,0.00021072,2]
[362864129,1748497840230,-160.0,0.00021072,2]
[362864131,1748497840239,-160.0,0.00021072,2]
[362864133,1748497840250,-423.31762986,0.00021072,2]
[362864135,1748497840259,-12660.97845086,0.00021072,2]
[362864137,1748497840268,-160.0,0.00021072,2]
[362864139,1748497840277,-500.0,0.00021164,2]
[362864141,1748497840287,-209.60859223,0.00021167,4]
[362864143,1748497840295,-509.24,0.00021325,3]
[362864144,1748497840304,-440.85137291,0.00021331,2]
[362864146,1748497840313,-266.09,0.00021331,2]
[362864148,1748497840322,-430.0,0.00021331,2]
[362864150,1748497840331,-589.88,0.00021331,2]
[362864152,1748497840341,-2243.48,0.00021331,2]
[362864154,1748497840350,-527.0,0.00021331,2]
[362864156,1748497840359,-439.72986467,0.00021333,2]
[362864158,1748497840369,-430.0,0.00021333,2]
[362864160,1748497840378,-430.0,0.00021333,2]
[362864163,1748497840388,-430.0,0.00021333,2]
[362864164,1748497840399,-1857.11,0.00021333,2]
[362864166,1748497840408,-366.53750699,0.00021333,2]
[362864168,1748497840417,-3389.39,0.00021333,2]
[362864170,1748497840427,-430.0,0.00021333,2]
[362864172,1748497840435,-430.0,0.00021333,2]
[362864174,1748497840445,-430.0,0.00021333,2]
[362864176,1748497840455,-430.0,0.00021333,2]
[362864178,1748497840463,-1380.33,0.00021333,2]
[362864180,1748497840473,-430.0,0.00021333,2]
[362864182,1748497840482,-1702.25,0.00021333,2]
[362864184,1748497840491,-430.0,0.00021333,2]
[362864186,1748497840500,-430.0,0.00021333,2]
[362864188,1748497840509,-430.0,0.00021333,2]
[362864190,1748497840518,-483.75,0.00021333,2]
[362864192,1748497840527,-430.0,0.00021333,2]
[362864194,1748497840536,-430.0,0.00021333,2]
[362864205,1748497840546,-430.0,0.00021333,2]
[362864207,1748497840642,-517.11,0.00021333,2]
[362864209,1748497840661,-430.0,0.00021333,2]
[362864211,1748497840679,-430.0,0.00021333,2]
[362864213,1748497840689,-430.0,0.00021333,2]
[362864215,1748497840699,-1587.24,0.00021333,2]
[362864217,1748497840707,-500.0,0.00021333,2]
[362864219,1748497840717,-430.0,0.00021333,2]
[362864221,1748497840726,-430.0,0.00021333,2]
[362864223,1748497840735,-430.0,0.00021333,2]
[362864225,1748497840745,-430.0,0.00021333,2]
[362864227,1748497840754,-430.0,0.00021333,2]
[362864229,1748497840763,-430.0,0.00021333,2]
[362864231,1748497840772,-430.0,0.00021333,2]
[362864233,1748497840781,-1070.88,0.00021333,2]
[362864235,1748497840791,-7466.6,0.00021333,2]
[362864237,1748497840800,-791.02,0.00021334,2]
[362864239,1748497840809,-430.0,0.00021334,2]
[362864241,1748497840819,-430.0,0.00021334,2]
[362864243,1748497840828,-430.0,0.00021334,2]
[362864245,1748497840838,-483.75,0.00021334,2]
[362864247,1748497840852,-430.0,0.00021334,2]
[362864249,1748497840862,-430.0,0.00021334,2]
[362864251,1748497840871,-782.42,0.00021334,2]
[362864254,1748497840880,-1869.63,0.00021334,2]
[362864255,1748497840890,-430.0,0.00021334,2]
[362864257,1748497840900,-501.66,0.00021334,2]
[362864260,1748497840909,-686.92,0.00021334,2]
[362864262,1748497840919,-430.0,0.00021334,2]
[362864264,1748497840930,-326.849475,0.00021335,2]
[362864266,1748497840940,-430.0,0.00021335,2]
[362864268,1748497840949,-430.0,0.00021335,2]
[362864270,1748497840958,-430.0,0.00021335,2]
[362864272,1748497840967,-430.0,0.00021335,2]
[362864273,1748497840977,-819.35,0.00021335,2]
[362864275,1748497840986,-430.0,0.00021335,2]
[362864277,1748497840995,-430.0,0.00021335,2]
[362864279,1748497841004,-430.0,0.00021335,2]
[362864281,1748497841013,-430.0,0.00021335,2]
[362864283,1748497841022,-430.0,0.00021335,2]